[Event "*** Titled Tuesday Blitz"]
[Site "Chess.com"]
[Date "2020.04.14"]
[Round "1"]
[White "Leo_C"]
[Black "mirciulica14"]
[Result "0-1"]
[WhiteElo "2266"]
[BlackElo "2616"]
[TimeControl "180+1"]
[EndTime "10:06:31 PDT"]
[Termination "mirciulica14 won by resignation"]

1. d4 {[%clk 0:03:00.9]} 1... Nf6 {[%clk 0:03:00.1]} 2. c4 {[%clk 0:03:00.4]}
2... e6 {[%clk 0:03:00.3]} 3. Nc3 {[%clk 0:03:00.6]} 3... Bb4 {[%clk 0:02:59.9]}
4. Qc2 {[%clk 0:03:01]} 4... d6 {[%clk 0:02:59.9]} 5. Nf3 {[%clk 0:03:01.1]}
5... O-O {[%clk 0:02:59.7]} 6. g3 {[%clk 0:03:01.5]} 6... b6 {[%clk 0:02:59.7]}
7. Bg2 {[%clk 0:02:59.8]} 7... Bb7 {[%clk 0:03:00.1]} 8. O-O {[%clk 0:03:00.2]}
8... Bxc3 {[%clk 0:02:59.1]} 9. Qxc3 {[%clk 0:03:00.3]} 9... Nbd7 {[%clk
0:02:59.2]} 10. Bg5 {[%clk 0:02:59.3]} 10... h6 {[%clk 0:02:46.7]} 11. Bd2
{[%clk 0:02:55.5]} 11... Ne4 {[%clk 0:02:45.4]} 12. Qc2 {[%clk 0:02:55.5]} 12...
Nxd2 {[%clk 0:02:43.4]} 13. Qxd2 {[%clk 0:02:55.1]} 13... Nf6 {[%clk 0:02:38.1]}
14. Rac1 {[%clk 0:02:50.3]} 14... Qe7 {[%clk 0:02:35]} 15. c5 {[%clk 0:02:49.4]}
15... dxc5 {[%clk 0:02:32.4]} 16. dxc5 {[%clk 0:02:49.5]} 16... Ne4 {[%clk
0:02:32.5]} 17. Qc2 {[%clk 0:02:46.5]} 17... Nxc5 {[%clk 0:02:29.4]} 18. b4
{[%clk 0:02:46.1]} 18... Na6 {[%clk 0:02:26.5]} 19. Ng5 {[%clk 0:02:38]} 19...
Qxg5 {[%clk 0:01:46.5]} 20. Bxb7 {[%clk 0:02:36.6]} 20... Nxb4 {[%clk
0:01:46.9]} 21. Qxc7 {[%clk 0:02:29.2]} 21... Rae8 {[%clk 0:01:03.3]} 22. Bf3
{[%clk 0:02:15.6]} 22... Re7 {[%clk 0:00:57.6]} 23. Qc4 {[%clk 0:02:10.9]} 23...
Qa5 {[%clk 0:00:47.6]} 24. a3 {[%clk 0:02:03.6]} 24... Nd5 {[%clk 0:00:47.4]}
25. Bxd5 {[%clk 0:01:51.9]} 25... exd5 {[%clk 0:00:40.5]} 26. Qb4 {[%clk
0:01:51.7]} 26... Qxb4 {[%clk 0:00:39]} 27. axb4 {[%clk 0:01:51.5]} 27... Rxe2
{[%clk 0:00:39.9]} 28. Rc7 {[%clk 0:01:46.8]} 28... Rb2 {[%clk 0:00:37.4]} 29.
Rxa7 {[%clk 0:01:45.4]} 29... Rxb4 {[%clk 0:00:33.8]} 30. Rd7 {[%clk 0:01:43.1]}
30... d4 {[%clk 0:00:29.3]} 31. Rd1 {[%clk 0:01:42.1]} 31... b5 {[%clk
0:00:29.8]} 32. R7xd4 {[%clk 0:01:40.6]} 32... Rxd4 {[%clk 0:00:30.7]} 33. Rxd4
{[%clk 0:01:40.4]} 33... Rb8 {[%clk 0:00:31.6]} 34. Rb4 {[%clk 0:01:39.7]} 34...
g5 {[%clk 0:00:22.8]} 35. h4 {[%clk 0:01:38.6]} 35... Kg7 {[%clk 0:00:23]} 36.
hxg5 {[%clk 0:01:38.4]} 36... hxg5 {[%clk 0:00:23.9]} 37. Kg2 {[%clk 0:01:38.2]}
37... Kf6 {[%clk 0:00:23.8]} 38. Kf3 {[%clk 0:01:38.5]} 38... Ke5 {[%clk
0:00:23.7]} 39. Kg4 {[%clk 0:01:37.4]} 39... f6 {[%clk 0:00:23.4]} 40. f4+
{[%clk 0:01:36.9]} 40... gxf4 {[%clk 0:00:22.8]} 41. gxf4+ {[%clk 0:01:37]}
41... Ke6 {[%clk 0:00:23.2]} 42. Re4+ {[%clk 0:01:36.5]} 42... Kd5 {[%clk
0:00:21.1]} 43. Rb4 {[%clk 0:01:36.5]} 43... Kc5 {[%clk 0:00:20]} 44. Rb1 {[%clk
0:01:36.4]} 44... b4 {[%clk 0:00:20.2]} 45. Kf5 {[%clk 0:01:36.6]} 45... Rb6
{[%clk 0:00:20.9]} 46. Kg6 {[%clk 0:01:34.4]} 46... b3 {[%clk 0:00:20.7]} 47. f5
{[%clk 0:01:34.3]} 47... Kc4 {[%clk 0:00:21.1]} 48. Rh1 {[%clk 0:01:28.1]} 48...
b2 {[%clk 0:00:19.9]} 49. Rh4+ {[%clk 0:01:27.8]} 49... Kb3 {[%clk 0:00:19.9]}
50. Rh3+ {[%clk 0:01:27.4]} 50... Ka2 {[%clk 0:00:20.3]} 51. Rh2 {[%clk
0:01:24.6]} 51... Ka1 {[%clk 0:00:20.3]} 0-1

[Event "*** Titled Tuesday Blitz"]
[Site "Chess.com"]
[Date "2020.04.14"]
[Round "1"]
[White "MergenKakabaev"]
[Black "MikaelyanArman"]
[Result "0-1"]
[WhiteElo "2440"]
[BlackElo "2831"]
[TimeControl "180+1"]
[EndTime "10:06:32 PDT"]
[Termination "MikaelyanArman won by resignation"]

1. e4 {[%clk 0:02:58.3]} 1... d5 {[%clk 0:02:57.3]} 2. exd5 {[%clk 0:02:57.2]}
2... Qxd5 {[%clk 0:02:58.2]} 3. Nc3 {[%clk 0:02:57.2]} 3... Qd8 {[%clk
0:02:58.8]} 4. d4 {[%clk 0:02:57.2]} 4... Nf6 {[%clk 0:02:59.2]} 5. Bc4 {[%clk
0:02:57.5]} 5... g6 {[%clk 0:02:59.5]} 6. Nf3 {[%clk 0:02:57]} 6... Bg7 {[%clk
0:02:59.8]} 7. O-O {[%clk 0:02:57]} 7... O-O {[%clk 0:03:00.1]} 8. h3 {[%clk
0:02:57]} 8... a6 {[%clk 0:03:00.6]} 9. a4 {[%clk 0:02:55.4]} 9... Nc6 {[%clk
0:03:00.8]} 10. Be3 {[%clk 0:02:53.7]} 10... e6 {[%clk 0:03:00.3]} 11. Qd2
{[%clk 0:02:51.3]} 11... b6 {[%clk 0:03:00.6]} 12. Rad1 {[%clk 0:02:50.4]} 12...
Bb7 {[%clk 0:03:00.8]} 13. Bh6 {[%clk 0:02:48.8]} 13... Ne7 {[%clk 0:02:58.9]}
14. Ne5 {[%clk 0:02:42.6]} 14... Nf5 {[%clk 0:02:48.3]} 15. Bxg7 {[%clk
0:02:30.6]} 15... Kxg7 {[%clk 0:02:49.2]} 16. Bb3 {[%clk 0:02:21.9]} 16... c5
{[%clk 0:02:43.8]} 17. dxc5 {[%clk 0:02:16.1]} 17... Qc7 {[%clk 0:02:43.4]} 18.
c6 {[%clk 0:01:52.5]} 18... Bxc6 {[%clk 0:02:37.8]} 19. Nxc6 {[%clk 0:01:51.6]}
19... Qxc6 {[%clk 0:02:38.7]} 20. Rfe1 {[%clk 0:01:16.8]} 20... Rfd8 {[%clk
0:02:30.9]} 21. Qxd8 {[%clk 0:01:13.3]} 21... Rxd8 {[%clk 0:02:31.8]} 22. Rxd8
{[%clk 0:01:13.6]} 22... Nh4 {[%clk 0:02:32.3]} 23. f3 {[%clk 0:01:11.5]} 23...
Qc5+ {[%clk 0:02:32.3]} 24. Kf1 {[%clk 0:01:02.2]} 24... Qg5 {[%clk 0:02:22.5]}
25. Re2 {[%clk 0:00:59.2]} 25... Nh5 {[%clk 0:02:22.4]} 26. Ne4 {[%clk
0:00:58.3]} 26... Ng3+ {[%clk 0:02:07.6]} 27. Nxg3 {[%clk 0:00:58]} 27... Qxd8
{[%clk 0:02:07.2]} 28. Ne4 {[%clk 0:00:57.3]} 28... Nf5 {[%clk 0:02:00.2]} 29.
Rd2 {[%clk 0:00:53.2]} 29... Qc7 {[%clk 0:01:58.5]} 30. Kf2 {[%clk 0:00:50.9]}
30... h5 {[%clk 0:01:55.9]} 31. g4 {[%clk 0:00:48.2]} 31... Qh2+ {[%clk
0:01:52.6]} 32. Ke1 {[%clk 0:00:43.5]} 32... Qg1+ {[%clk 0:01:51.2]} 33. Ke2
{[%clk 0:00:42.8]} 33... Nd4+ {[%clk 0:01:50.3]} 34. Kd3 {[%clk 0:00:33.2]}
34... Nxf3 {[%clk 0:01:50.5]} 35. Rf2 {[%clk 0:00:30.7]} 35... hxg4 {[%clk
0:01:48.8]} 36. hxg4 {[%clk 0:00:31.6]} 36... Qxg4 {[%clk 0:01:45.4]} 37. Ke3
{[%clk 0:00:30.2]} 37... Ng5 {[%clk 0:01:40.9]} 38. Nf6 {[%clk 0:00:26.9]} 38...
Qg3+ {[%clk 0:01:35.9]} 39. Ke2 {[%clk 0:00:23.2]} 39... Qe5+ {[%clk 0:01:33.3]}
40. Kf1 {[%clk 0:00:21.2]} 40... Qxb2 {[%clk 0:01:28.2]} 0-1

[Event "*** Titled Tuesday Blitz"]
[Site "Chess.com"]
[Date "2020.04.14"]
[Round "1"]
[White "Agent-JL"]
[Black "AlexandraSamaganova"]
[Result "1-0"]
[WhiteElo "2563"]
[BlackElo "2168"]
[TimeControl "180+1"]
[EndTime "10:06:34 PDT"]
[Termination "Agent-JL won on time"]

1. Nf3 {[%clk 0:02:55.7]} 1... c5 {[%clk 0:02:59.5]} 2. b3 {[%clk 0:02:55.6]}
2... Nf6 {[%clk 0:02:58]} 3. Bb2 {[%clk 0:02:56.2]} 3... e6 {[%clk 0:02:56.4]}
4. g3 {[%clk 0:02:56.5]} 4... b6 {[%clk 0:02:56.7]} 5. Bg2 {[%clk 0:02:57]} 5...
Bb7 {[%clk 0:02:57.2]} 6. O-O {[%clk 0:02:57.4]} 6... Be7 {[%clk 0:02:57.7]} 7.
c4 {[%clk 0:02:57.3]} 7... O-O {[%clk 0:02:57.6]} 8. Nc3 {[%clk 0:02:57.3]} 8...
d6 {[%clk 0:02:56]} 9. d4 {[%clk 0:02:57.4]} 9... cxd4 {[%clk 0:02:56]} 10. Nxd4
{[%clk 0:02:58.3]} 10... Bxg2 {[%clk 0:02:56]} 11. Kxg2 {[%clk 0:02:59.2]} 11...
d5 {[%clk 0:02:55.2]} 12. cxd5 {[%clk 0:02:58.4]} 12... Nxd5 {[%clk 0:02:55.5]}
13. Rc1 {[%clk 0:02:56.3]} 13... Na6 {[%clk 0:02:52.5]} 14. Qd2 {[%clk
0:02:51.5]} 14... Bb4 {[%clk 0:02:40.3]} 15. Nc6 {[%clk 0:02:47.8]} 15... Qd6
{[%clk 0:02:30.2]} 16. Nxb4 {[%clk 0:02:46]} 16... Qxb4 {[%clk 0:02:24]} 17.
Rfd1 {[%clk 0:02:33.4]} 17... Nxc3 {[%clk 0:02:20.1]} 18. Bxc3 {[%clk
0:02:34.3]} 18... Qe4+ {[%clk 0:02:20.3]} 19. f3 {[%clk 0:02:34.2]} 19... Qf5
{[%clk 0:02:18.4]} 20. Qd4 {[%clk 0:02:32.1]} 20... f6 {[%clk 0:02:09.9]} 21. e4
{[%clk 0:02:32.5]} 21... Qb5 {[%clk 0:02:05.5]} 22. Qd6 {[%clk 0:02:25.6]} 22...
Qe2+ {[%clk 0:01:55.2]} 23. Kh3 {[%clk 0:02:21.4]} 23... Qxf3 {[%clk 0:01:49.6]}
24. Qxe6+ {[%clk 0:02:21.3]} 24... Kh8 {[%clk 0:01:49.8]} 25. Qf5 {[%clk
0:02:10.1]} 25... Qe3 {[%clk 0:01:42]} 26. Bd4 {[%clk 0:01:53]} 26... Qh6+
{[%clk 0:01:36.3]} 27. Kg2 {[%clk 0:01:52.5]} 27... Rad8 {[%clk 0:01:21.2]} 28.
Bc3 {[%clk 0:01:35.4]} 28... Nc5 {[%clk 0:01:15.3]} 29. Qf3 {[%clk 0:01:18.9]}
29... Qg6 {[%clk 0:00:38.2]} 30. Bb4 {[%clk 0:01:08.8]} 30... Rxd1 {[%clk
0:00:03.8]} 31. Rxd1 {[%clk 0:01:07.9]} 31... h6 {[%clk 0:00:02.6]} 32. Bxc5
{[%clk 0:01:07.5]} 32... bxc5 {[%clk 0:00:02.5]} 33. Rc1 {[%clk 0:01:06]} 33...
Qg5 {[%clk 0:00:02.2]} 34. Qf4 {[%clk 0:01:02.2]} 34... Qh5 {[%clk 0:00:01.1]}
35. g4 {[%clk 0:00:57.8]} 1-0

[Event "*** Titled Tuesday Blitz"]
[Site "Chess.com"]
[Date "2020.04.14"]
[Round "1"]
[White "DanielRensch"]
[Black "Boudicca64"]
[Result "1-0"]
[WhiteElo "2534"]
[BlackElo "2072"]
[TimeControl "180+1"]
[EndTime "10:06:34 PDT"]
[Termination "DanielRensch won on time"]

1. e4 {[%clk 0:02:58.8]} 1... c5 {[%clk 0:02:56.6]} 2. Nf3 {[%clk 0:02:57.8]}
2... Nc6 {[%clk 0:02:55]} 3. d4 {[%clk 0:02:57.6]} 3... cxd4 {[%clk 0:02:53.1]}
4. Nxd4 {[%clk 0:02:58.5]} 4... g6 {[%clk 0:02:52.1]} 5. Nc3 {[%clk 0:02:57.6]}
5... Bg7 {[%clk 0:02:50.9]} 6. Be3 {[%clk 0:02:57.1]} 6... Nf6 {[%clk
0:02:49.5]} 7. Bc4 {[%clk 0:02:56.3]} 7... d6 {[%clk 0:02:47.1]} 8. f3 {[%clk
0:02:55.2]} 8... O-O {[%clk 0:02:45]} 9. Bb3 {[%clk 0:02:55]} 9... a6 {[%clk
0:02:41]} 10. h4 {[%clk 0:02:52.6]} 10... Nxd4 {[%clk 0:02:34]} 11. Bxd4 {[%clk
0:02:51.8]} 11... b5 {[%clk 0:02:32.8]} 12. Qd2 {[%clk 0:02:34.9]} 12... Bb7
{[%clk 0:02:30.4]} 13. h5 {[%clk 0:02:31.3]} 13... b4 {[%clk 0:02:12.5]} 14. Nd5
{[%clk 0:02:26.4]} 14... Bxd5 {[%clk 0:02:08.6]} 15. Bxd5 {[%clk 0:02:25.5]}
15... e5 {[%clk 0:01:35]} 16. Be3 {[%clk 0:02:19.2]} 16... Nxd5 {[%clk
0:01:24.1]} 17. Qxd5 {[%clk 0:02:01.9]} 17... Qf6 {[%clk 0:01:05.4]} 18. O-O-O
{[%clk 0:01:53.2]} 18... Rfd8 {[%clk 0:00:51.3]} 19. hxg6 {[%clk 0:01:43.3]}
19... hxg6 {[%clk 0:00:36.2]} 20. Kb1 {[%clk 0:01:41.7]} 20... Rab8 {[%clk
0:00:31.4]} 21. Rh3 {[%clk 0:01:38.1]} 21... Rb5 {[%clk 0:00:29.2]} 22. Qc6
{[%clk 0:01:33.9]} 22... d5 {[%clk 0:00:14.2]} 23. Qc7 {[%clk 0:01:15.3]} 23...
Rbb8 {[%clk 0:00:06]} 24. exd5 {[%clk 0:00:44.2]} 24... Rbc8 {[%clk 0:00:04.3]}
25. Qa5 {[%clk 0:00:40]} 25... Qd6 {[%clk 0:00:01.2]} 26. Bg5 {[%clk 0:00:30.3]}
1-0

[Event "*** Titled Tuesday Blitz"]
[Site "Chess.com"]
[Date "2020.04.14"]
[Round "1"]
[White "jefferyx"]
[Black "FrogMist"]
[Result "1/2-1/2"]
[WhiteElo "2872"]
[BlackElo "2479"]
[TimeControl "180+1"]
[EndTime "10:06:35 PDT"]
[Termination "Game drawn by agreement"]

1. d4 {[%clk 0:03:00]} 1... Nf6 {[%clk 0:02:59.6]} 2. c4 {[%clk 0:02:59.8]} 2...
g6 {[%clk 0:02:55.6]} 3. Nc3 {[%clk 0:02:59.7]} 3... d5 {[%clk 0:02:54.2]} 4.
Bg5 {[%clk 0:02:58.5]} 4... Bg7 {[%clk 0:02:52.9]} 5. Bxf6 {[%clk 0:02:58.2]}
5... Bxf6 {[%clk 0:02:53.8]} 6. cxd5 {[%clk 0:02:58]} 6... c6 {[%clk 0:02:52.3]}
7. e4 {[%clk 0:02:55.8]} 7... cxd5 {[%clk 0:02:49.8]} 8. Nxd5 {[%clk 0:02:53.2]}
8... Bg7 {[%clk 0:02:47.6]} 9. Bb5+ {[%clk 0:02:02]} 9... Nc6 {[%clk 0:02:39.5]}
10. Ne2 {[%clk 0:01:59.8]} 10... O-O {[%clk 0:02:21.4]} 11. O-O {[%clk
0:01:59.5]} 11... Bg4 {[%clk 0:02:16.7]} 12. f3 {[%clk 0:01:09.4]} 12... Nxd4
{[%clk 0:01:27.8]} 13. Nxd4 {[%clk 0:01:08.3]} 13... e6 {[%clk 0:01:28]} 14.
Nxe6 {[%clk 0:00:40.6]} 14... Bxe6 {[%clk 0:01:21.1]} 15. Kh1 {[%clk 0:00:40.8]}
15... Bxd5 {[%clk 0:01:14]} 16. Qxd5 {[%clk 0:00:35]} 16... Bxb2 {[%clk
0:01:06.8]} 17. Rab1 {[%clk 0:00:34]} 17... Qxd5 {[%clk 0:01:05]} 18. exd5
{[%clk 0:00:34.9]} 18... Be5 {[%clk 0:01:05.6]} 19. Rfe1 {[%clk 0:00:35.5]}
19... Bd6 {[%clk 0:01:05.3]} 20. Ba4 {[%clk 0:00:35.4]} 20... Rab8 {[%clk
0:01:02.6]} 21. g3 {[%clk 0:00:35]} 21... Rfd8 {[%clk 0:01:00.6]} 22. Kg2 {[%clk
0:00:34.4]} 22... Kf8 {[%clk 0:00:55.8]} 23. f4 {[%clk 0:00:34.4]} 23... h5
{[%clk 0:00:55.8]} 24. Kf3 {[%clk 0:00:34.7]} 24... a6 {[%clk 0:00:53.7]} 25.
Rb6 {[%clk 0:00:30.1]} 25... Bc5 {[%clk 0:00:47.8]} 26. Rbb1 {[%clk 0:00:18.8]}
26... Rxd5 {[%clk 0:00:47.2]} 27. Rbd1 {[%clk 0:00:19.5]} 27... Rbd8 {[%clk
0:00:46]} 28. Rxd5 {[%clk 0:00:15.2]} 28... Rxd5 {[%clk 0:00:46.9]} 29. Rd1
{[%clk 0:00:16.1]} 29... Rxd1 {[%clk 0:00:46.7]} 30. Bxd1 {[%clk 0:00:17]} 30...
Ke7 {[%clk 0:00:46.4]} 31. Bb3 {[%clk 0:00:17.2]} 31... Bd6 {[%clk 0:00:36.3]}
32. Bd5 {[%clk 0:00:17.4]} 32... b6 {[%clk 0:00:36.2]} 33. Bb7 {[%clk
0:00:17.5]} 33... a5 {[%clk 0:00:35.9]} 34. Bc6 {[%clk 0:00:18.2]} 34... Bc5
{[%clk 0:00:35.8]} 35. a4 {[%clk 0:00:18.6]} 1/2-1/2

[Event "*** Titled Tuesday Blitz"]
[Site "Chess.com"]
[Date "2020.04.14"]
[Round "1"]
[White "K_A_S_T_O_R"]
[Black "Philosopherrr"]
[Result "1-0"]
[WhiteElo "2833"]
[BlackElo "2441"]
[TimeControl "180+1"]
[EndTime "10:06:35 PDT"]
[Termination "K_A_S_T_O_R won by resignation"]

1. e4 {[%clk 0:03:00.9]} 1... e5 {[%clk 0:02:59.2]} 2. Nf3 {[%clk 0:03:00.8]}
2... Nc6 {[%clk 0:02:59.4]} 3. Bb5 {[%clk 0:03:00.9]} 3... a6 {[%clk 0:02:59.6]}
4. Ba4 {[%clk 0:03:01.2]} 4... Nf6 {[%clk 0:03:00]} 5. O-O {[%clk 0:03:01.8]}
5... Be7 {[%clk 0:03:00.4]} 6. Re1 {[%clk 0:03:02]} 6... b5 {[%clk 0:03:00.7]}
7. Bb3 {[%clk 0:03:02.6]} 7... d6 {[%clk 0:03:01.1]} 8. c3 {[%clk 0:03:02.4]}
8... O-O {[%clk 0:03:01.6]} 9. h3 {[%clk 0:03:02.5]} 9... Bb7 {[%clk 0:03:02.1]}
10. d4 {[%clk 0:03:00.7]} 10... Re8 {[%clk 0:03:02.5]} 11. Nbd2 {[%clk
0:03:01.1]} 11... exd4 {[%clk 0:03:02.1]} 12. cxd4 {[%clk 0:03:00.2]} 12... Nd7
{[%clk 0:03:02.6]} 13. Nf1 {[%clk 0:02:53.4]} 13... Na5 {[%clk 0:03:02.1]} 14.
Bc2 {[%clk 0:02:52.5]} 14... Bf6 {[%clk 0:03:02.7]} 15. Rb1 {[%clk 0:02:43.5]}
15... c5 {[%clk 0:03:00.9]} 16. d5 {[%clk 0:02:43.2]} 16... Nc4 {[%clk
0:03:01.1]} 17. b3 {[%clk 0:02:41.6]} 17... Nce5 {[%clk 0:03:00.3]} 18. N3h2
{[%clk 0:02:36.2]} 18... Ng6 {[%clk 0:02:52.2]} 19. Ng3 {[%clk 0:02:26.5]} 19...
Bc3 {[%clk 0:02:45.7]} 20. Bd2 {[%clk 0:02:25.4]} 20... Qf6 {[%clk 0:02:10]} 21.
Nh5 {[%clk 0:02:05.7]} 21... Qd4 {[%clk 0:02:09.5]} 22. Nf3 {[%clk 0:02:01]}
22... Qb4 {[%clk 0:02:09.5]} 23. a3 {[%clk 0:02:00.9]} 23... Qa5 {[%clk
0:02:09.8]} 24. b4 {[%clk 0:01:59]} 24... cxb4 {[%clk 0:02:09.8]} 25. axb4
{[%clk 0:01:58.8]} 25... Qc7 {[%clk 0:02:10.1]} 26. Bxc3 {[%clk 0:01:53.1]}
26... Qxc3 {[%clk 0:02:10]} 27. Re3 {[%clk 0:01:53.6]} 27... Qc7 {[%clk
0:02:10.1]} 28. Bb3 {[%clk 0:01:48.7]} 28... Rac8 {[%clk 0:02:08.3]} 29. Nd4
{[%clk 0:01:47.3]} 29... Nde5 {[%clk 0:02:05.8]} 30. Nf5 {[%clk 0:01:45.7]}
30... Nc4 {[%clk 0:01:55.3]} 31. Qd4 {[%clk 0:01:35.4]} 31... f6 {[%clk
0:01:29.3]} 32. Bxc4 {[%clk 0:01:24.6]} 32... Qxc4 {[%clk 0:01:28.1]} 33. Qxc4
{[%clk 0:01:22.2]} 33... Rxc4 {[%clk 0:01:24.1]} 34. Nxd6 {[%clk 0:01:21.6]}
34... Re7 {[%clk 0:01:00.9]} 35. Nxc4 {[%clk 0:01:14.8]} 35... bxc4 {[%clk
0:01:01.8]} 36. Rc1 {[%clk 0:01:15.1]} 36... Ne5 {[%clk 0:00:50.1]} 37. f4
{[%clk 0:01:12.8]} 37... Nd3 {[%clk 0:00:49.6]} 38. Rxc4 {[%clk 0:01:11.7]}
38... Bxd5 {[%clk 0:00:50.1]} 39. Rd4 {[%clk 0:01:09.2]} 39... Bf7 {[%clk
0:00:44.3]} 40. Rd8+ {[%clk 0:01:05.8]} 40... Re8 {[%clk 0:00:41.4]} 41. Rexd3
{[%clk 0:00:59.9]} 41... Bxh5 {[%clk 0:00:38.5]} 42. R3d6 {[%clk 0:00:59.1]} 1-0

[Event "*** Titled Tuesday Blitz"]
[Site "Chess.com"]
[Date "2020.04.14"]
[Round "1"]
[White "JonahWillow"]
[Black "rynos0411"]
[Result "1/2-1/2"]
[WhiteElo "2770"]
[BlackElo "2414"]
[TimeControl "180+1"]
[EndTime "10:06:35 PDT"]
[Termination "Game drawn by agreement"]

1. e4 {[%clk 0:03:00.9]} 1... e5 {[%clk 0:02:58.7]} 2. Nf3 {[%clk 0:03:01.1]}
2... Nc6 {[%clk 0:02:58.3]} 3. Nc3 {[%clk 0:03:02]} 3... Nf6 {[%clk 0:02:57.2]}
4. Bb5 {[%clk 0:03:00.6]} 4... Bc5 {[%clk 0:02:54.6]} 5. O-O {[%clk 0:03:00]}
5... d6 {[%clk 0:02:47.3]} 6. d4 {[%clk 0:02:59.3]} 6... exd4 {[%clk 0:02:46.5]}
7. Nxd4 {[%clk 0:03:00.2]} 7... Bd7 {[%clk 0:02:45.8]} 8. Nxc6 {[%clk
0:02:53.4]} 8... Bxc6 {[%clk 0:02:39.6]} 9. Bxc6+ {[%clk 0:02:52.3]} 9... bxc6
{[%clk 0:02:40.2]} 10. Bg5 {[%clk 0:02:53]} 10... O-O {[%clk 0:02:27.8]} 11. Qf3
{[%clk 0:02:49]} 11... Rb8 {[%clk 0:02:27.8]} 12. Rab1 {[%clk 0:02:48.9]} 12...
Bd4 {[%clk 0:02:23.8]} 13. Rfe1 {[%clk 0:02:37.4]} 13... Re8 {[%clk 0:02:20.3]}
14. Qd3 {[%clk 0:02:27.9]} 14... Bxf2+ {[%clk 0:02:10.5]} 15. Kxf2 {[%clk
0:02:14.3]} 15... Ng4+ {[%clk 0:02:10.2]} 16. Kg1 {[%clk 0:01:57.5]} 16... Qxg5
{[%clk 0:02:09.8]} 17. Qd4 {[%clk 0:01:49.3]} 17... Ne5 {[%clk 0:01:53.1]} 18.
Qf2 {[%clk 0:01:47.3]} 18... Re6 {[%clk 0:01:51.3]} 19. Kh1 {[%clk 0:01:39.9]}
19... Rh6 {[%clk 0:01:48.2]} 20. h3 {[%clk 0:01:33.9]} 20... c5 {[%clk 0:01:37]}
21. Nd5 {[%clk 0:01:33.1]} 21... c6 {[%clk 0:01:36.2]} 22. Ne3 {[%clk
0:01:32.1]} 22... Rf6 {[%clk 0:01:32.2]} 23. Qe2 {[%clk 0:01:32.4]} 23... g6
{[%clk 0:01:21.2]} 24. Rf1 {[%clk 0:01:27.2]} 24... Rxf1+ {[%clk 0:01:18.7]} 25.
Nxf1 {[%clk 0:01:28.1]} 25... Qf4 {[%clk 0:01:16.3]} 26. Nd2 {[%clk 0:01:27.1]}
26... Re8 {[%clk 0:01:06.2]} 27. Rf1 {[%clk 0:01:24.6]} 27... Qg5 {[%clk
0:01:04.3]} 28. Nf3 {[%clk 0:01:23.2]} 28... Nxf3 {[%clk 0:01:04.1]} 29. Qxf3
{[%clk 0:01:23]} 29... Re7 {[%clk 0:01:04]} 30. Qd3 {[%clk 0:01:21.3]} 30... Qe5
{[%clk 0:01:03.6]} 31. c3 {[%clk 0:01:20.7]} 31... d5 {[%clk 0:00:59.7]} 32.
exd5 {[%clk 0:01:21.6]} 32... cxd5 {[%clk 0:01:00.6]} 33. Rd1 {[%clk 0:01:19.9]}
33... Rd7 {[%clk 0:00:51.8]} 34. Qb5 {[%clk 0:01:20.2]} 34... Qc7 {[%clk
0:00:51.4]} 35. a4 {[%clk 0:01:19]} 35... d4 {[%clk 0:00:49.1]} 36. Qc4 {[%clk
0:01:19.2]} 36... dxc3 {[%clk 0:00:43]} 37. Rxd7 {[%clk 0:01:20.1]} 37... Qxd7
{[%clk 0:00:42.6]} 38. bxc3 {[%clk 0:01:21]} 38... Qd1+ {[%clk 0:00:39.4]} 39.
Kh2 {[%clk 0:01:21]} 39... Qd6+ {[%clk 0:00:40.3]} 40. Kh1 {[%clk 0:01:21.2]}
40... Kg7 {[%clk 0:00:40.3]} 41. h4 {[%clk 0:01:18.6]} 41... h5 {[%clk
0:00:38.6]} 42. a5 {[%clk 0:01:17.1]} 42... Qe5 {[%clk 0:00:33.4]} 43. a6 {[%clk
0:01:16.6]} 43... f6 {[%clk 0:00:30.4]} 44. Kg1 {[%clk 0:01:15.2]} 44... g5
{[%clk 0:00:26.3]} 45. hxg5 {[%clk 0:01:14.2]} 45... fxg5 {[%clk 0:00:26.8]} 46.
Qb5 {[%clk 0:01:14.2]} 46... Qe3+ {[%clk 0:00:21.2]} 47. Kh1 {[%clk 0:01:12.7]}
47... Qe1+ {[%clk 0:00:11.8]} 48. Kh2 {[%clk 0:01:12.2]} 48... Qh4+ {[%clk
0:00:12.3]} 49. Kg1 {[%clk 0:01:12.7]} 49... Qe1+ {[%clk 0:00:12.4]} 1/2-1/2

[Event "*** Titled Tuesday Blitz"]
[Site "Chess.com"]
[Date "2020.04.14"]
[Round "1"]
[White "GMMarcinDziuba"]
[Black "BojanR1"]
[Result "1-0"]
[WhiteElo "2675"]
[BlackElo "2331"]
[TimeControl "180+1"]
[EndTime "10:06:35 PDT"]
[Termination "GMMarcinDziuba won by resignation"]

1. Nf3 {[%clk 0:02:56.8]} 1... c5 {[%clk 0:02:59.9]} 2. g3 {[%clk 0:02:56.7]}
2... Nc6 {[%clk 0:02:59.4]} 3. Bg2 {[%clk 0:02:56.6]} 3... d5 {[%clk 0:03:00]}
4. d4 {[%clk 0:02:55.5]} 4... cxd4 {[%clk 0:02:57.5]} 5. Nxd4 {[%clk 0:02:55.1]}
5... e5 {[%clk 0:02:55.8]} 6. Nxc6 {[%clk 0:02:55.3]} 6... bxc6 {[%clk
0:02:55.7]} 7. c4 {[%clk 0:02:56]} 7... Be6 {[%clk 0:02:55.7]} 8. O-O {[%clk
0:02:50.1]} 8... Nf6 {[%clk 0:02:55.2]} 9. Bg5 {[%clk 0:02:45.1]} 9... Be7
{[%clk 0:02:54.4]} 10. Qa4 {[%clk 0:02:44.4]} 10... Qd7 {[%clk 0:02:42.8]} 11.
Bxf6 {[%clk 0:02:26.4]} 11... Bxf6 {[%clk 0:02:39.8]} 12. Nc3 {[%clk 0:02:25.8]}
12... e4 {[%clk 0:02:33.3]} 13. Rfd1 {[%clk 0:02:18.8]} 13... Bxc3 {[%clk
0:02:30.5]} 14. bxc3 {[%clk 0:02:17.7]} 14... f5 {[%clk 0:02:25.7]} 15. Rab1
{[%clk 0:02:11]} 15... O-O {[%clk 0:02:18.9]} 16. cxd5 {[%clk 0:02:09.2]} 16...
cxd5 {[%clk 0:02:15.3]} 17. Qxd7 {[%clk 0:02:09.1]} 17... Bxd7 {[%clk
0:02:16.1]} 18. Rxd5 {[%clk 0:02:09.2]} 18... Be6 {[%clk 0:02:16]} 19. Ra5
{[%clk 0:02:08.9]} 19... Rab8 {[%clk 0:02:08.8]} 20. Rb4 {[%clk 0:01:23.4]}
20... Rbc8 {[%clk 0:01:32.4]} 21. Rxa7 {[%clk 0:01:15.3]} 21... Rxc3 {[%clk
0:01:24.9]} 22. Rbb7 {[%clk 0:01:15.1]} 22... Bf7 {[%clk 0:01:03.9]} 23. Bh3
{[%clk 0:01:10.2]} 23... g6 {[%clk 0:01:03.4]} 24. a4 {[%clk 0:01:04.1]} 24...
e3 {[%clk 0:00:54.4]} 25. fxe3 {[%clk 0:01:01.3]} 25... Rxe3 {[%clk 0:00:54.4]}
26. Kf2 {[%clk 0:01:00.1]} 26... Re5 {[%clk 0:00:37.3]} 27. a5 {[%clk
0:00:50.4]} 27... Kg7 {[%clk 0:00:26.3]} 28. Bg2 {[%clk 0:00:49.8]} 28... Kf6
{[%clk 0:00:24.2]} 29. a6 {[%clk 0:00:43.5]} 29... Bc4 {[%clk 0:00:23.1]} 30.
Rb6+ {[%clk 0:00:40]} 30... Kg5 {[%clk 0:00:21.8]} 31. Bf3 {[%clk 0:00:36.6]}
31... Rf6 {[%clk 0:00:17.1]} 32. h4+ {[%clk 0:00:35.8]} 32... Kh6 {[%clk
0:00:16.6]} 33. Rxf6 {[%clk 0:00:35.7]} 1-0